[Event "Titled Tuesday Blitz August 22 Late 2023"]
[White "Jorajuria Mendoza, Algol"]
[Black "Grossboss19"]
[WhiteFideId "5128897"]
[WhiteElo "2421"]
[BlackElo "2529"]
[Result "0-1"]
[Round "6"]
[TimeControl "180+1"]
[Date "2023.08.22"]
[WhiteClock "0:00:07"]
[BlackClock "0:00:52"]
[Board "100"]

1. e4 {[%clk 0:03:00]}  c6 {[%clk 0:02:09]} 2. d4 {[%clk 0:02:58]}  d5 {[%clk 0:02:10]} 3. e5 {[%clk 0:02:58]}  c5 {[%clk 0:02:10]} 4. dxc5 {[%clk 0:02:57]}  e6 {[%clk 0:02:10]} 5. Nf3 {[%clk 0:02:55]}  Bxc5 {[%clk 0:02:10]} 6. a3 {[%clk 0:02:56]}  a5 {[%clk 0:02:10]} 7. Nc3 {[%clk 0:02:52]}  Nc6 {[%clk 0:02:09]} 8. Bb5 {[%clk 0:02:43]}  Ne7 {[%clk 0:02:09]} 9. Na4 {[%clk 0:02:32]}  Ba7 {[%clk 0:02:08]} 10. c4 {[%clk 0:02:21]}  O-O {[%clk 0:02:07]} 11. c5 {[%clk 0:02:20]}  Ng6 {[%clk 0:02:02]} 12. Qe2 {[%clk 0:02:12]}  Qc7 {[%clk 0:02:01]} 13. Bxc6 {[%clk 0:02:09]}  bxc6 {[%clk 0:01:59]} 14. O-O {[%clk 0:02:07]}  Bb8 {[%clk 0:01:58]} 15. Re1 {[%clk 0:02:02]}  Ba6 {[%clk 0:01:58]} 16. Qc2 {[%clk 0:01:35]}  Ba7 {[%clk 0:01:51]} 17. h4 {[%clk 0:01:25]}  h6 {[%clk 0:01:45]} 18. h5 {[%clk 0:01:25]}  Ne7 {[%clk 0:01:45]} 19. Bf4 {[%clk 0:01:23]}  Bb5 {[%clk 0:01:42]} 20. Rac1 {[%clk 0:01:18]}  Rfb8 {[%clk 0:01:41]} 21. Nc3 {[%clk 0:01:01]}  Bc4 {[%clk 0:01:38]} 22. Nd2 {[%clk 0:00:50]}  Ba6 {[%clk 0:01:38]} 23. Ne2 {[%clk 0:00:42]}  Bxe2 {[%clk 0:01:16]} 24. Rxe2 {[%clk 0:00:43]}  Rb5 {[%clk 0:01:16]} 25. Be3 {[%clk 0:00:22]}  Qxe5 {[%clk 0:01:13]} 26. Nf3 {[%clk 0:00:22]}  Qf5 {[%clk 0:01:10]} 27. Qd2 {[%clk 0:00:13]}  Qxh5 {[%clk 0:01:03]} 28. a4 {[%clk 0:00:13]}  Rb4 {[%clk 0:00:59]} 29. Nd4 {[%clk 0:00:11]}  Bb8 {[%clk 0:00:57]} 30. g3 {[%clk 0:00:10]}  e5 {[%clk 0:00:53]} 31. Nb3 {[%clk 0:00:07]}  Rxb3 {[%clk 0:00:52]} 0-1


[Site "https://www.chess.com"]

[Event "Titled Tuesday Blitz August 22 Late 2023"]
[White "Hercegovac, Neven"]
[Black "Fernandez, Nelson Wilfredo"]
[WhiteFideId "2839135"]
[BlackFideId "8401594"]
[WhiteElo "2317"]
[BlackElo "2527"]
[Result "0-1"]
[Round "6"]
[TimeControl "180+1"]
[Date "2023.08.22"]
[WhiteClock "0:00:12"]
[BlackClock "0:00:15"]
[Board "101"]

1. d4 {[%clk 0:02:53]}  d5 {[%clk 0:02:59]} 2. Bf4 {[%clk 0:02:52]}  Nf6 {[%clk 0:02:59]} 3. e3 {[%clk 0:02:52]}  c5 {[%clk 0:02:59]} 4. Nf3 {[%clk 0:02:51]}  Nc6 {[%clk 0:02:59]} 5. Nbd2 {[%clk 0:02:51]}  Bf5 {[%clk 0:02:58]} 6. Bb5 {[%clk 0:02:31]}  e6 {[%clk 0:02:54]} 7. O-O {[%clk 0:02:28]}  Rc8 {[%clk 0:02:51]} 8. c4 {[%clk 0:01:54]}  Be7 {[%clk 0:02:33]} 9. dxc5 {[%clk 0:01:33]}  O-O {[%clk 0:02:16]} 10. Bxc6 {[%clk 0:01:24]}  bxc6 {[%clk 0:02:14]} 11. cxd5 {[%clk 0:01:08]}  Nxd5 {[%clk 0:02:09]} 12. Bg3 {[%clk 0:01:01]}  Bd3 {[%clk 0:02:06]} 13. Re1 {[%clk 0:00:58]}  Bxc5 {[%clk 0:02:05]} 14. Rc1 {[%clk 0:00:53]}  Bb6 {[%clk 0:02:04]} 15. Ne5 {[%clk 0:00:52]}  Ba6 {[%clk 0:01:49]} 16. Rxc6 {[%clk 0:00:51]}  f6 {[%clk 0:01:23]} 17. Rxc8 {[%clk 0:00:45]}  Qxc8 {[%clk 0:01:24]} 18. Nef3 {[%clk 0:00:40]}  Rd8 {[%clk 0:01:23]} 19. a3 {[%clk 0:00:38]}  Kh8 {[%clk 0:01:12]} 20. h3 {[%clk 0:00:38]}  e5 {[%clk 0:01:10]} 21. Qa4 {[%clk 0:00:37]}  Bb7 {[%clk 0:01:05]} 22. Nc4 {[%clk 0:00:35]}  Bc6 {[%clk 0:00:40]} 23. Nxb6 {[%clk 0:00:34]}  Bxa4 {[%clk 0:00:37]} 24. Nxc8 {[%clk 0:00:34]}  Rxc8 {[%clk 0:00:37]} 25. Re2 {[%clk 0:00:24]}  Bb3 {[%clk 0:00:28]} 26. Rd2 {[%clk 0:00:17]}  Rc1+ {[%clk 0:00:22]} 27. Kh2 {[%clk 0:00:17]}  g5 {[%clk 0:00:23]} 28. e4 {[%clk 0:00:18]}  Nb6 {[%clk 0:00:20]} 29. h4 {[%clk 0:00:14]}  h6 {[%clk 0:00:20]} 30. hxg5 {[%clk 0:00:14]}  hxg5 {[%clk 0:00:21]} 31. Kh3 {[%clk 0:00:13]}  Be6+ {[%clk 0:00:17]} 32. Kh2 {[%clk 0:00:12]}  Bb3 {[%clk 0:00:18]} 33. Kh3 {[%clk 0:00:12]}  Rh1+ {[%clk 0:00:15]} 34. Kg4 {[%clk 0:00:12]}  Be6# {[%clk 0:00:15]} 0-1


[Site "https://www.chess.com"]

[Event "Titled Tuesday Blitz August 22 Late 2023"]
[White "Haydon, David L"]
[Black "Sernecki, Franciszek"]
[WhiteFideId "415405"]
[BlackFideId "1169297"]
[WhiteElo "2710"]
[BlackElo "2430"]
[Result "0-1"]
[Round "6"]
[TimeControl "180+1"]
[Date "2023.08.22"]
[WhiteClock "0:00:02"]
[BlackClock "0:00:39"]
[Board "104"]

1. d4 {[%clk 0:02:56]}  d5 {[%clk 0:02:59]} 2. Nf3 {[%clk 0:02:54]}  Nf6 {[%clk 0:02:58]} 3. e3 {[%clk 0:02:55]}  a6 {[%clk 0:02:58]} 4. c4 {[%clk 0:02:55]}  c6 {[%clk 0:02:57]} 5. Nc3 {[%clk 0:02:55]}  Bf5 {[%clk 0:02:55]} 6. Bd3 {[%clk 0:02:54]}  Bxd3 {[%clk 0:02:53]} 7. Qxd3 {[%clk 0:02:54]}  e6 {[%clk 0:02:45]} 8. O-O {[%clk 0:02:52]}  Nbd7 {[%clk 0:02:42]} 9. e4 {[%clk 0:02:51]}  dxe4 {[%clk 0:02:41]} 10. Nxe4 {[%clk 0:02:51]}  Nxe4 {[%clk 0:02:38]} 11. Qxe4 {[%clk 0:02:52]}  Nf6 {[%clk 0:02:38]} 12. Qe2 {[%clk 0:02:52]}  Bd6 {[%clk 0:02:39]} 13. Bg5 {[%clk 0:02:52]}  O-O {[%clk 0:02:38]} 14. Rad1 {[%clk 0:02:51]}  h6 {[%clk 0:02:38]} 15. Bh4 {[%clk 0:02:50]}  Be7 {[%clk 0:02:29]} 16. Ne5 {[%clk 0:02:48]}  Nd7 {[%clk 0:02:26]} 17. Bg3 {[%clk 0:02:42]}  Nxe5 {[%clk 0:02:05]} 18. Bxe5 {[%clk 0:02:37]}  Bf6 {[%clk 0:02:05]} 19. f4 {[%clk 0:02:33]}  Bxe5 {[%clk 0:01:58]} 20. fxe5 {[%clk 0:02:29]}  Qe7 {[%clk 0:01:58]} 21. Rf4 {[%clk 0:02:14]}  Rad8 {[%clk 0:01:56]} 22. h4 {[%clk 0:02:11]}  Rd7 {[%clk 0:01:46]} 23. Rdf1 {[%clk 0:02:03]}  Qb4 {[%clk 0:01:36]} 24. b3 {[%clk 0:01:51]}  Rfd8 {[%clk 0:01:35]} 25. Qe3 {[%clk 0:01:50]}  Qb6 {[%clk 0:01:30]} 26. Kh2 {[%clk 0:01:42]}  Rxd4 {[%clk 0:01:23]} 27. Rg4 {[%clk 0:01:28]}  c5 {[%clk 0:01:07]} 28. Rff4 {[%clk 0:00:40]}  Rxf4 {[%clk 0:01:03]} 29. Rxf4 {[%clk 0:00:38]}  Rd4 {[%clk 0:01:04]} 30. Kh3 {[%clk 0:00:28]}  Qd8 {[%clk 0:00:59]} 31. Rxd4 {[%clk 0:00:21]}  Qxd4 {[%clk 0:00:49]} 32. Qxd4 {[%clk 0:00:21]}  cxd4 {[%clk 0:00:49]} 33. Kg4 {[%clk 0:00:22]}  f6 {[%clk 0:00:48]} 34. exf6 {[%clk 0:00:22]}  gxf6 {[%clk 0:00:46]} 35. Kf4 {[%clk 0:00:22]}  Kf7 {[%clk 0:00:45]} 36. Ke4 {[%clk 0:00:20]}  e5 {[%clk 0:00:46]} 37. g4 {[%clk 0:00:19]}  Ke6 {[%clk 0:00:46]} 38. c5 {[%clk 0:00:18]}  Kd7 {[%clk 0:00:42]} 39. b4 {[%clk 0:00:17]}  Kc6 {[%clk 0:00:42]} 40. a4 {[%clk 0:00:17]}  a5 {[%clk 0:00:39]} 41. bxa5 {[%clk 0:00:12]}  Kxc5 {[%clk 0:00:39]} 42. Kd3 {[%clk 0:00:02]}  Kd5 {[%clk 0:00:39]} 0-1


[Site "https://www.chess.com"]

[Event "Titled Tuesday Blitz August 22 Late 2023"]
[White "Silva Lucena, Cristian"]
[Black "Perske, Thore"]
[WhiteFideId "2232588"]
[BlackFideId "12902195"]
[WhiteElo "2427"]
[BlackElo "2674"]
[Result "0-1"]
[Round "6"]
[TimeControl "180+1"]
[Date "2023.08.22"]
[WhiteClock "0:00:45"]
[BlackClock "0:00:22"]
[Board "105"]

1. e4 {[%clk 0:03:00]}  e6 {[%clk 0:03:00]} 2. d4 {[%clk 0:03:00]}  d5 {[%clk 0:03:00]} 3. e5 {[%clk 0:03:01]}  c5 {[%clk 0:03:00]} 4. c3 {[%clk 0:03:01]}  Nc6 {[%clk 0:03:01]} 5. Nf3 {[%clk 0:03:02]}  Nge7 {[%clk 0:03:01]} 6. a3 {[%clk 0:03:02]}  Bd7 {[%clk 0:03:00]} 7. b4 {[%clk 0:03:03]}  cxd4 {[%clk 0:03:00]} 8. cxd4 {[%clk 0:03:04]}  Nf5 {[%clk 0:03:00]} 9. Bb2 {[%clk 0:03:04]}  b5 {[%clk 0:02:56]} 10. Bd3 {[%clk 0:02:57]}  a5 {[%clk 0:02:50]} 11. O-O {[%clk 0:02:49]}  axb4 {[%clk 0:02:47]} 12. axb4 {[%clk 0:02:50]}  Rxa1 {[%clk 0:02:45]} 13. Bxa1 {[%clk 0:02:50]}  Nxb4 {[%clk 0:02:40]} 14. Bxf5 {[%clk 0:02:50]}  exf5 {[%clk 0:02:41]} 15. Nc3 {[%clk 0:02:49]}  Be7 {[%clk 0:02:31]} 16. Qb3 {[%clk 0:02:49]}  Qa8 {[%clk 0:02:10]} 17. Bb2 {[%clk 0:02:46]}  O-O {[%clk 0:02:08]} 18. Ba3 {[%clk 0:02:47]}  Nc6 {[%clk 0:01:56]} 19. Ra1 {[%clk 0:02:31]}  b4 {[%clk 0:01:49]} 20. Bb2 {[%clk 0:02:26]}  Qb7 {[%clk 0:01:33]} 21. Nxd5 {[%clk 0:02:25]}  Be6 {[%clk 0:01:34]} 22. Nxe7+ {[%clk 0:02:23]}  Nxe7 {[%clk 0:01:33]} 23. Qd3 {[%clk 0:02:19]}  Nd5 {[%clk 0:01:28]} 24. h4 {[%clk 0:02:14]}  Rc8 {[%clk 0:01:26]} 25. Ng5 {[%clk 0:02:08]}  Qc6 {[%clk 0:01:20]} 26. Rc1 {[%clk 0:01:49]}  Qd7 {[%clk 0:01:15]} 27. Rxc8+ {[%clk 0:01:46]}  Qxc8 {[%clk 0:01:16]} 28. g3 {[%clk 0:01:43]}  h6 {[%clk 0:01:16]} 29. Nxe6 {[%clk 0:01:38]}  fxe6 {[%clk 0:01:17]} 30. Qb5 {[%clk 0:01:34]}  Kf7 {[%clk 0:01:03]} 31. h5 {[%clk 0:01:33]}  Qc7 {[%clk 0:01:01]} 32. Kg2 {[%clk 0:01:31]}  f4 {[%clk 0:00:49]} 33. Kh3 {[%clk 0:01:25]}  fxg3 {[%clk 0:00:47]} 34. fxg3 {[%clk 0:01:26]}  Qc2 {[%clk 0:00:40]} 35. Qb7+ {[%clk 0:01:18]}  Qc7 {[%clk 0:00:37]} 36. Qb5 {[%clk 0:01:15]}  Qe7 {[%clk 0:00:35]} 37. Qf1+ {[%clk 0:01:12]}  Kg8 {[%clk 0:00:34]} 38. Bc1 {[%clk 0:01:07]}  Qb7 {[%clk 0:00:32]} 39. Qd3 {[%clk 0:01:03]}  b3 {[%clk 0:00:31]} 40. Qg6 {[%clk 0:01:03]}  Qf7 {[%clk 0:00:20]} 41. Qd3 {[%clk 0:01:00]}  Qf5+ {[%clk 0:00:19]} 42. Qxf5 {[%clk 0:01:00]}  exf5 {[%clk 0:00:20]} 43. Bb2 {[%clk 0:01:00]}  Nb4 {[%clk 0:00:20]} 44. Kg2 {[%clk 0:00:55]}  Nd3 {[%clk 0:00:19]} 45. Bc3 {[%clk 0:00:54]}  b2 {[%clk 0:00:19]} 46. Bxb2 {[%clk 0:00:55]}  Nxb2 {[%clk 0:00:20]} 47. Kf3 {[%clk 0:00:52]}  Kf7 {[%clk 0:00:21]} 48. d5 {[%clk 0:00:52]}  Nc4 {[%clk 0:00:21]} 49. Kf4 {[%clk 0:00:52]}  Nb6 {[%clk 0:00:21]} 50. d6 {[%clk 0:00:52]}  Ke6 {[%clk 0:00:21]} 51. d7 {[%clk 0:00:52]}  Nxd7 {[%clk 0:00:22]} 52. g4 {[%clk 0:00:52]}  fxg4 {[%clk 0:00:21]} 53. Kxg4 {[%clk 0:00:45]}  Nxe5+ {[%clk 0:00:22]} 0-1


[Site "https://www.chess.com"]

[Event "Titled Tuesday Blitz August 22 Late 2023"]
[White "Karttunen, Mika"]
[Black "Kupervaser, Erez"]
[WhiteFideId "502081"]
[BlackFideId "2814587"]
[WhiteElo "2626"]
[BlackElo "2427"]
[Result "1-0"]
[Round "6"]
[TimeControl "180+1"]
[Date "2023.08.22"]
[WhiteClock "0:00:06"]
[BlackClock "0:00:12"]
[Board "106"]

1. c4 {[%clk 0:03:00]}  c6 {[%clk 0:02:59]} 2. Nc3 {[%clk 0:03:00]}  Nf6 {[%clk 0:02:59]} 3. e4 {[%clk 0:02:57]}  d6 {[%clk 0:02:56]} 4. d4 {[%clk 0:02:56]}  g6 {[%clk 0:02:57]} 5. f4 {[%clk 0:02:53]}  Bg7 {[%clk 0:02:55]} 6. e5 {[%clk 0:02:48]}  Nfd7 {[%clk 0:02:49]} 7. h4 {[%clk 0:02:36]}  dxe5 {[%clk 0:02:44]} 8. dxe5 {[%clk 0:02:34]}  Nc5 {[%clk 0:02:33]} 9. Qxd8+ {[%clk 0:02:21]}  Kxd8 {[%clk 0:02:34]} 10. Be3 {[%clk 0:02:21]}  Nbd7 {[%clk 0:02:30]} 11. b4 {[%clk 0:02:06]}  Ne6 {[%clk 0:02:29]} 12. Nf3 {[%clk 0:01:59]}  f6 {[%clk 0:02:28]} 13. O-O-O {[%clk 0:01:54]}  Kc7 {[%clk 0:02:26]} 14. exf6 {[%clk 0:01:29]}  exf6 {[%clk 0:02:27]} 15. Ne4 {[%clk 0:01:22]}  f5 {[%clk 0:01:54]} 16. Nd6 {[%clk 0:01:18]}  c5 {[%clk 0:01:54]} 17. Nb5+ {[%clk 0:00:39]}  Kb8 {[%clk 0:01:52]} 18. Rd6 {[%clk 0:00:39]}  Re8 {[%clk 0:01:46]} 19. h5 {[%clk 0:00:38]}  a6 {[%clk 0:01:42]} 20. Na3 {[%clk 0:00:36]}  cxb4 {[%clk 0:01:41]} 21. Nc2 {[%clk 0:00:36]}  Kc7 {[%clk 0:01:42]} 22. Rd1 {[%clk 0:00:29]}  a5 {[%clk 0:01:29]} 23. hxg6 {[%clk 0:00:29]}  hxg6 {[%clk 0:01:30]} 24. Rh7 {[%clk 0:00:29]}  Rh8 {[%clk 0:01:27]} 25. Rxh8 {[%clk 0:00:28]}  Bxh8 {[%clk 0:01:28]} 26. Nh4 {[%clk 0:00:24]}  Ndf8 {[%clk 0:01:20]} 27. c5 {[%clk 0:00:20]}  Bf6 {[%clk 0:01:18]} 28. Nf3 {[%clk 0:00:19]}  Bd7 {[%clk 0:01:18]} 29. Bc4 {[%clk 0:00:20]}  Rd8 {[%clk 0:01:16]} 30. Rh1 {[%clk 0:00:19]}  Bc6 {[%clk 0:01:07]} 31. Rh6 {[%clk 0:00:19]}  Bg7 {[%clk 0:01:04]} 32. Rh3 {[%clk 0:00:18]}  Be4 {[%clk 0:01:02]} 33. Rg3 {[%clk 0:00:18]}  Bc3 {[%clk 0:00:19]} 34. Bxe6 {[%clk 0:00:16]}  Nxe6 {[%clk 0:00:20]} 35. Rxg6 {[%clk 0:00:16]}  Re8 {[%clk 0:00:20]} 36. Ne5 {[%clk 0:00:15]}  a4 {[%clk 0:00:20]} 37. Rg3 {[%clk 0:00:10]}  b3 {[%clk 0:00:20]} 38. axb3 {[%clk 0:00:10]}  axb3 {[%clk 0:00:21]} 39. Na3 {[%clk 0:00:10]}  Ra8 {[%clk 0:00:21]} 40. Nec4 {[%clk 0:00:08]}  Kc6 {[%clk 0:00:20]} 41. Rg6 {[%clk 0:00:08]}  Kd5 {[%clk 0:00:20]} 42. Nb6+ {[%clk 0:00:07]}  Kc6 {[%clk 0:00:20]} 43. Nxa8 {[%clk 0:00:07]}  Kd5 {[%clk 0:00:20]} 44. Nb6+ {[%clk 0:00:06]}  Kc6 {[%clk 0:00:21]} 45. Nbc4 {[%clk 0:00:06]}  Kc7 {[%clk 0:00:21]} 46. Nb2 {[%clk 0:00:06]}  Nd4 {[%clk 0:00:20]} 47. Bxd4 {[%clk 0:00:06]}  Bxd4 {[%clk 0:00:12]} 48. Nb5+ {[%clk 0:00:06]} 1-0


[Site "https://www.chess.com"]

[Event "Titled Tuesday Blitz August 22 Late 2023"]
[White "Avila Rodriguez, Joshua Ad"]
[Black "Garcia Blanco, Omar"]
[WhiteFideId "5126444"]
[BlackFideId "2287153"]
[WhiteElo "2426"]
[BlackElo "2610"]
[Result "0-1"]
[Round "6"]
[TimeControl "180+1"]
[Date "2023.08.22"]
[WhiteClock "0:00:00"]
[BlackClock "0:00:36"]
[Board "107"]

1. e4 {[%clk 0:03:00]}  c5 {[%clk 0:02:59]} 2. Nf3 {[%clk 0:03:01]}  e6 {[%clk 0:02:59]} 3. d4 {[%clk 0:03:01]}  cxd4 {[%clk 0:03:00]} 4. Nxd4 {[%clk 0:03:02]}  Nc6 {[%clk 0:03:00]} 5. Nc3 {[%clk 0:03:02]}  Qc7 {[%clk 0:03:01]} 6. Be3 {[%clk 0:03:02]}  a6 {[%clk 0:03:01]} 7. Qf3 {[%clk 0:03:02]}  Bd6 {[%clk 0:03:01]} 8. Nxc6 {[%clk 0:02:53]}  bxc6 {[%clk 0:03:01]} 9. O-O-O {[%clk 0:02:52]}  Be5 {[%clk 0:03:01]} 10. Bd4 {[%clk 0:02:50]}  Nf6 {[%clk 0:03:00]} 11. Bxe5 {[%clk 0:02:41]}  Qxe5 {[%clk 0:03:01]} 12. Bd3 {[%clk 0:02:41]}  Rb8 {[%clk 0:02:58]} 13. h4 {[%clk 0:02:31]}  h5 {[%clk 0:02:56]} 14. Rhe1 {[%clk 0:02:25]}  a5 {[%clk 0:02:49]} 15. Qe3 {[%clk 0:02:10]}  Ng4 {[%clk 0:02:46]} 16. Qe2 {[%clk 0:02:10]}  Qf4+ {[%clk 0:02:44]} 17. Rd2 {[%clk 0:02:07]}  Ne5 {[%clk 0:01:56]} 18. g3 {[%clk 0:01:54]}  Qg4 {[%clk 0:01:48]} 19. Rf1 {[%clk 0:01:29]}  Nf3 {[%clk 0:01:40]} 20. Rdd1 {[%clk 0:01:29]}  d6 {[%clk 0:01:17]} 21. Qe3 {[%clk 0:01:23]}  Ne5 {[%clk 0:01:13]} 22. Be2 {[%clk 0:01:22]}  Qg6 {[%clk 0:01:10]} 23. Rxd6 {[%clk 0:01:18]}  O-O {[%clk 0:01:09]} 24. Qg5 {[%clk 0:01:00]}  Qxg5+ {[%clk 0:01:08]} 25. hxg5 {[%clk 0:01:01]}  g6 {[%clk 0:01:08]} 26. f4 {[%clk 0:00:58]}  Ng4 {[%clk 0:01:08]} 27. Bxg4 {[%clk 0:00:57]}  hxg4 {[%clk 0:01:09]} 28. Rxc6 {[%clk 0:00:57]}  Bb7 {[%clk 0:01:07]} 29. Rc7 {[%clk 0:00:56]}  Ba6 {[%clk 0:01:07]} 30. Rd1 {[%clk 0:00:54]}  Rfc8 {[%clk 0:01:07]} 31. Rxc8+ {[%clk 0:00:41]}  Rxc8 {[%clk 0:01:08]} 32. Rd6 {[%clk 0:00:37]}  Bb7 {[%clk 0:01:06]} 33. Kd2 {[%clk 0:00:36]}  Kg7 {[%clk 0:01:05]} 34. Ke3 {[%clk 0:00:35]}  Rh8 {[%clk 0:01:05]} 35. Rb6 {[%clk 0:00:26]}  Ba8 {[%clk 0:00:56]} 36. a3 {[%clk 0:00:25]}  Rh3 {[%clk 0:00:52]} 37. Ne2 {[%clk 0:00:25]}  Rh2 {[%clk 0:00:52]} 38. b4 {[%clk 0:00:23]}  axb4 {[%clk 0:00:50]} 39. axb4 {[%clk 0:00:24]}  Bxe4 {[%clk 0:00:50]} 40. c4 {[%clk 0:00:11]}  Bf3 {[%clk 0:00:49]} 41. Nd4 {[%clk 0:00:12]}  Rg2 {[%clk 0:00:43]} 42. c5 {[%clk 0:00:11]}  Rxg3 {[%clk 0:00:43]} 43. Nxf3 {[%clk 0:00:12]}  Rxf3+ {[%clk 0:00:43]} 44. Ke2 {[%clk 0:00:12]}  Rxf4 {[%clk 0:00:43]} 45. c6 {[%clk 0:00:10]}  g3 {[%clk 0:00:41]} 46. c7 {[%clk 0:00:09]}  g2 {[%clk 0:00:41]} 47. c8=Q {[%clk 0:00:08]}  g1=Q {[%clk 0:00:41]} 48. Qc3+ {[%clk 0:00:09]}  Kh7 {[%clk 0:00:37]} 49. Qe3 {[%clk 0:00:09]}  Qf1+ {[%clk 0:00:35]} 50. Kd2 {[%clk 0:00:08]}  Rf2+ {[%clk 0:00:36]} 51. Kc3 {[%clk 0:00:00]}  Rf3 {[%clk 0:00:36]} 0-1


[Site "https://www.chess.com"]

[Event "Titled Tuesday Blitz August 22 Late 2023"]
[White "Rosen, Eric"]
[Black "Dwilewicz, Katarzyna"]
[WhiteFideId "2032562"]
[BlackFideId "1148486"]
[WhiteElo "2572"]
[BlackElo "2425"]
[Result "1-0"]
[Round "6"]
[TimeControl "180+1"]
[Date "2023.08.22"]
[WhiteClock "0:00:37"]
[BlackClock "0:00:00"]
[Board "108"]

1. e4 {[%clk 0:03:00]}  c5 {[%clk 0:02:58]} 2. c3 {[%clk 0:03:00]}  d5 {[%clk 0:02:57]} 3. exd5 {[%clk 0:03:00]}  Qxd5 {[%clk 0:02:58]} 4. d4 {[%clk 0:03:00]}  Nf6 {[%clk 0:02:57]} 5. Nf3 {[%clk 0:03:01]}  e6 {[%clk 0:02:56]} 6. Na3 {[%clk 0:02:59]}  Nc6 {[%clk 0:02:56]} 7. Be3 {[%clk 0:02:46]}  cxd4 {[%clk 0:02:53]} 8. Nb5 {[%clk 0:02:46]}  Qd8 {[%clk 0:02:54]} 9. Nbxd4 {[%clk 0:02:46]}  Qc7 {[%clk 0:02:35]} 10. Nxc6 {[%clk 0:02:38]}  bxc6 {[%clk 0:02:22]} 11. Bd3 {[%clk 0:02:29]}  Bd6 {[%clk 0:02:19]} 12. Qa4 {[%clk 0:02:26]}  O-O {[%clk 0:02:18]} 13. Qh4 {[%clk 0:02:19]}  Qe7 {[%clk 0:01:37]} 14. O-O-O {[%clk 0:01:52]}  Rb8 {[%clk 0:01:22]} 15. Ng5 {[%clk 0:01:39]}  h6 {[%clk 0:01:17]} 16. Ne4 {[%clk 0:01:39]}  Nxe4 {[%clk 0:01:07]} 17. Qxe7 {[%clk 0:01:37]}  Bxe7 {[%clk 0:01:08]} 18. Bxe4 {[%clk 0:01:38]}  c5 {[%clk 0:01:02]} 19. Bf4 {[%clk 0:01:30]}  Rb6 {[%clk 0:00:52]} 20. Kc2 {[%clk 0:01:25]}  f5 {[%clk 0:00:45]} 21. Bf3 {[%clk 0:01:24]}  Kf7 {[%clk 0:00:36]} 22. Rhe1 {[%clk 0:01:20]}  Rd8 {[%clk 0:00:30]} 23. Bc7 {[%clk 0:01:13]}  Rxd1 {[%clk 0:00:28]} 24. Rxd1 {[%clk 0:01:14]}  Ra6 {[%clk 0:00:25]} 25. a3 {[%clk 0:01:14]}  Bf6 {[%clk 0:00:18]} 26. g3 {[%clk 0:01:06]}  e5 {[%clk 0:00:18]} 27. Bd5+ {[%clk 0:01:05]}  Be6 {[%clk 0:00:17]} 28. Bb7 {[%clk 0:01:05]}  Ra4 {[%clk 0:00:14]} 29. Bc6 {[%clk 0:01:00]}  Rg4 {[%clk 0:00:11]} 30. Bf3 {[%clk 0:00:54]}  Ra4 {[%clk 0:00:09]} 31. Bc6 {[%clk 0:00:53]}  Rg4 {[%clk 0:00:08]} 32. h3 {[%clk 0:00:54]}  Rg6 {[%clk 0:00:08]} 33. Bf3 {[%clk 0:00:54]}  Rg5 {[%clk 0:00:03]} 34. h4 {[%clk 0:00:53]}  e4 {[%clk 0:00:03]} 35. hxg5 {[%clk 0:00:52]}  hxg5 {[%clk 0:00:04]} 36. Be2 {[%clk 0:00:48]}  g6 {[%clk 0:00:03]} 37. Bb8 {[%clk 0:00:47]}  Be7 {[%clk 0:00:02]} 38. Bxa7 {[%clk 0:00:46]}  f4 {[%clk 0:00:02]} 39. a4 {[%clk 0:00:43]}  f3 {[%clk 0:00:02]} 40. Bb5 {[%clk 0:00:42]}  Bf5 {[%clk 0:00:03]} 41. Kb3 {[%clk 0:00:40]}  g4 {[%clk 0:00:02]} 42. Bc4+ {[%clk 0:00:39]}  Kf8 {[%clk 0:00:02]} 43. a5 {[%clk 0:00:39]}  Bg5 {[%clk 0:00:01]} 44. Bxc5+ {[%clk 0:00:39]}  Kg7 {[%clk 0:00:01]} 45. a6 {[%clk 0:00:39]}  e3 {[%clk 0:00:02]} 46. Bd4+ {[%clk 0:00:39]}  Kf8 {[%clk 0:00:01]} 47. a7 {[%clk 0:00:38]}  Be4 {[%clk 0:00:01]} 48. Bxe3 {[%clk 0:00:37]}  Bxe3 {[%clk 0:00:01]} 49. fxe3 {[%clk 0:00:38]}  Ke7 {[%clk 0:00:01]} 50. Bd5 {[%clk 0:00:37]}  f2 {[%clk 0:00:00]} 51. Bxe4 {[%clk 0:00:37]} 1-0


[Site "https://www.chess.com"]

[Event "Titled Tuesday Blitz August 22 Late 2023"]
[White "Leebit02"]
[Black "Ronka, Erik"]
[BlackFideId "505080"]
[WhiteElo "2543"]
[BlackElo "2416"]
[Result "1-0"]
[Round "6"]
[TimeControl "180+1"]
[Date "2023.08.22"]
[WhiteClock "0:01:02"]
[BlackClock "0:00:00"]
[Board "112"]

1. Nf3 {[%clk 0:03:00]}  d5 {[%clk 0:02:57]} 2. e3 {[%clk 0:02:59]}  Nf6 {[%clk 0:02:57]} 3. b3 {[%clk 0:02:57]}  Bg4 {[%clk 0:02:55]} 4. Be2 {[%clk 0:02:54]}  Nbd7 {[%clk 0:02:55]} 5. Bb2 {[%clk 0:02:54]}  e6 {[%clk 0:02:53]} 6. c4 {[%clk 0:02:54]}  c6 {[%clk 0:02:52]} 7. h3 {[%clk 0:02:49]}  Bh5 {[%clk 0:02:50]} 8. Nc3 {[%clk 0:02:47]}  Bd6 {[%clk 0:02:49]} 9. d4 {[%clk 0:02:37]}  O-O {[%clk 0:02:47]} 10. O-O {[%clk 0:02:36]}  Qe7 {[%clk 0:02:47]} 11. Qc2 {[%clk 0:02:23]}  e5 {[%clk 0:02:30]} 12. dxe5 {[%clk 0:02:16]}  Nxe5 {[%clk 0:02:29]} 13. Nh4 {[%clk 0:02:14]}  Bxe2 {[%clk 0:02:16]} 14. Nxe2 {[%clk 0:02:12]}  g6 {[%clk 0:02:06]} 15. g3 {[%clk 0:01:47]}  Rfe8 {[%clk 0:02:01]} 16. Rae1 {[%clk 0:01:40]}  dxc4 {[%clk 0:02:00]} 17. bxc4 {[%clk 0:01:38]}  Rad8 {[%clk 0:02:00]} 18. Nd4 {[%clk 0:01:30]}  Ba3 {[%clk 0:01:42]} 19. Ba1 {[%clk 0:01:29]}  Qc5 {[%clk 0:01:24]} 20. Nb3 {[%clk 0:01:19]}  Qe7 {[%clk 0:01:18]} 21. e4 {[%clk 0:01:12]}  Nfd7 {[%clk 0:00:53]} 22. f4 {[%clk 0:01:05]}  Bc5+ {[%clk 0:00:14]} 23. Kg2 {[%clk 0:01:02]}  Nxc4 {[%clk 0:00:00]} 24. Qxc4 {[%clk 0:01:02]} 1-0


[Site "https://www.chess.com"]